bitfinex-derivatives/quotes_SOLF0:USTF0_20250803
["timestamp","ask_amount","ask_price","bid_price","bid_amount"]
[1754181670245,3.28,157.14,157.07,8.93576982]
[1754181670842,3.28,157.14,157.1,6.3667]
[1754181671047,3.28,157.14,157.07,8.93576982]
[1754181671240,6.366,157.12,157.07,15.30336982]
[1754181671438,3.28,157.1,157.07,8.93576982]
[1754181671646,137.84,157.16,157.07,8.93576982]
[1754181671947,3.28,157.14,156.95,137.34]
[1754181672149,4.52433432,157.13,157.01,8.93576982]
[1754181672453,3.28,157.11,157.0,8.93576982]
[1754181672748,3.28,157.09,156.95,137.34]
[1754181673052,3.28,157.06,157.04,6.3688]
[1754181673843,3.28,157.05,157.03,6.3695]
[1754181674242,6.3682,157.07,156.99,8.93576982]
[1754181674448,3.28,157.12,157.01,6.3701]
[1754181674646,3.28,157.1,157.01,6.3701]
[1754181674844,4.52441872,157.09,157.01,6.3701]
[1754181675042,6.368,157.07,157.01,6.3701]
[1754181675246,3.28,157.06,157.01,6.3701]
[1754181675444,6.3662,157.12,157.02,8.93576982]
[1754181675654,3.28,157.09,157.02,8.93576982]
[1754181675949,3.28,157.09,157.05,8.93576982]
[1754181676542,3.28,157.1,157.05,8.93576982]
[1754181676747,3.28,157.15,157.05,8.93576982]
[1754181676949,4.52363436,157.14,157.08,6.3675]
[1754181677151,3.28,157.12,157.08,6.3675]
[1754181677353,434.64019155,157.17,157.08,6.3675]
[1754181677354,3.28,157.1,157.08,6.3675]
[1754181677543,144.82019155,157.16,157.08,6.3675]
[1754181677544,3.28,157.09,157.08,6.3675]
[1754181677949,3.28,157.09,157.07,6.3678]
[1754181678151,144.82019155,157.16,157.05,8.93576982]
[1754181678347,6.98019155,157.14,157.02,8.93576982]
[1754181678554,3.28,157.08,157.02,8.93576982]
[1754181679458,4.53182716,157.07,157.02,8.93576982]
[1754181679662,6.98019155,157.13,157.02,8.93576982]
[1754181679856,3.28,157.04,157.02,8.93576982]
[1754181680156,3.28,157.07,157.02,8.93576982]
[1754181680347,3.28,157.1,157.02,8.93576982]
[1754181680554,7.81268689,157.09,157.05,8.93576982]
[1754181680754,3.28,157.08,157.06,6.368]
[1754181680960,3.28,157.08,157.05,8.93576982]
[1754181681154,3.28,157.08,157.06,6.368]
[1754181681455,3.28,157.13,157.05,8.93576982]
[1754181681654,6.3655,157.13,157.09,6.367]
[1754181681858,137.84,157.16,157.08,8.93576982]
[1754181682058,3.28,157.11,157.08,8.93576982]
[1754181682255,3.28,157.13,157.08,8.93576982]
[1754181682457,3.28,157.18,157.11,8.93576982]
[1754181682653,4.53899931,157.17,157.14,8.93576982]
[1754181682859,3.28,157.18,157.17,6.3639]
[1754181683053,4.53937925,157.2,157.14,8.93576982]
[1754181683254,3.28,157.2,157.17,6.3637]
[1754181683454,3.28,157.2,157.14,8.93576982]
[1754181683855,3.28,157.19,157.18,6.3634]
[1754181684156,3.28,157.24,157.14,8.93576982]
[1754181684353,3.28,157.18,157.15,6.3646]
[1754181684555,143.60019155,157.25,157.14,8.93576982]
[1754181684556,3.28,157.22,157.14,8.93576982]
[1754181684757,3.28,157.2,157.14,8.93576982]
[1754181684958,4.54141179,157.21,157.14,8.93576982]
[1754181684959,3.28,157.18,157.14,8.93576982]
[1754181685262,3.28,157.16,157.14,8.93576982]
[1754181685459,6.98019155,157.24,157.14,8.93576982]
[1754181685666,3.28,157.22,157.14,8.93576982]
[1754181685858,3.28,157.19,157.14,8.93576982]
[1754181686059,4.54293253,157.18,157.14,8.93576982]
[1754181686364,6.98019155,157.24,157.14,8.93576982]
[1754181686365,3.28,157.23,157.14,8.93576982]
[1754181686660,3.28,157.21,157.14,8.93576982]
[1754181686857,4.54441856,157.2,157.14,8.93576982]
[1754181687053,3.28,157.21,157.14,8.93576982]
[1754181687257,4.54456557,157.2,157.14,8.93576982]
[1754181687455,3.28,157.21,157.14,8.93576982]
[1754181687655,4.54492397,157.2,157.17,6.3638]
[1754181687854,3.28,157.19,157.17,6.3638]
[1754181688361,3.28,157.19,157.14,8.93576982]
[1754181688568,3.52,157.23,157.17,8.93576982]
[1754181688764,8.06554554,157.22,157.2,6.3623]
[1754181688966,3.52,157.24,157.17,8.93576982]
[1754181689166,3.52,157.21,157.17,8.93576982]
[1754181689365,3.52,157.24,157.17,8.93576982]
[1754181689563,4.54554764,157.23,157.18,6.3632]
[1754181689759,3.52,157.21,157.14,8.93576982]
[1754181690065,136.62,157.25,157.14,15.30056982]
[1754181690066,9.8831,157.19,157.14,15.30056982]
[1754181690263,3.52,157.17,157.14,8.93576982]
[1754181690864,3.52,157.17,157.15,6.3643]
[1754181691063,3.52,157.17,157.14,8.93576982]
[1754181691567,3.52,157.17,157.16,6.3643]
[1754181692260,3.52,157.17,157.11,8.93576982]
[1754181692667,3.52,157.17,157.13,6.3654]
[1754181692866,3.52,157.16,157.1,8.93576982]
[1754181693765,3.52,157.16,157.12,6.3658]
[1754181693966,3.52,157.16,157.1,8.93576982]
[1754181694170,3.52,157.16,157.07,8.93576982]
[1754181694364,3.52,157.16,157.08,6.3672]
[1754181694866,3.52,157.1,157.08,6.3672]
[1754181695168,3.52,157.07,157.03,8.93576982]
[1754181695363,3.52,157.07,156.97,136.18]
[1754181695565,3.52,157.07,157.02,8.93576982]
[1754181696364,3.52,157.16,157.02,8.93576982]
[1754181696565,3.52,157.14,157.02,8.93576982]
[1754181696772,3.52,157.12,157.02,8.93576982]
[1754181696968,3.52,157.1,157.05,6.3687]
[1754181697271,3.52,157.1,157.02,8.93576982]
[1754181698167,3.52,157.1,157.05,8.93576982]
[1754181698666,3.52,157.13,157.08,8.93576982]
[1754181698870,3.52,157.15,157.11,8.93576982]
[1754181699070,3.52,157.15,157.14,6.3651]
[1754181699269,3.52,157.15,157.11,8.93576982]
[1754181699567,3.52,157.22,157.1,6.3664]
[1754181699768,3.52,157.2,157.08,8.93576982]
[1754181699970,3.52,157.18,157.11,8.93576982]
[1754181700169,3.52,157.18,157.14,6.3649]
[1754181701071,3.52,157.18,157.15,6.3645]
[1754181701272,3.52,157.23,157.11,8.93576982]
[1754181701474,135.76,157.24,157.14,8.93576982]
[1754181701475,3.52,157.21,157.14,8.93576982]
[1754181701770,135.76,157.24,157.14,8.93576982]
[1754181701771,3.52,157.2,157.14,8.93576982]
[1754181702271,3.52,157.19,157.18,6.3634]
[1754181703268,135.76,157.24,157.17,8.93576982]
[1754181703664,3.52,157.23,157.17,8.93576982]
[1754181703865,3.52,157.28,157.2,8.93576982]
[1754181704166,3.52,157.27,157.26,6.3602]
[1754181704365,6.98019155,157.36,157.26,6.3602]
[1754181704567,3.52,157.29,157.24,8.93576982]
[1754181704873,3.52,157.28,157.27,6.3598]
[1754181705875,3.52,157.28,157.26,6.3601]
[1754181706072,3.52,157.28,157.24,8.93576982]
[1754181706269,3.52,157.28,157.25,6.3605]
[1754181706476,6.3585,157.31,157.25,6.3605]
[1754181706677,3.52,157.3,157.25,6.3605]
[1754181706876,6.3577,157.33,157.24,8.93576982]
[1754181707066,3.52,157.31,157.27,8.93576982]
[1754181707267,3.52,157.31,157.17,436.59576982]
[1754181707268,3.52,157.33,157.3,8.93576982]
[1754181707470,3.52,157.36,157.33,6.3571]
[1754181707676,139.20039823,157.38,157.3,8.93576982]
[1754181707878,3.52,157.34,157.32,6.3577]
[1754181708472,3.52,157.34,157.33,6.3574]
[1754181708667,3.52,157.34,157.3,8.93576982]
[1754181709175,3.52,157.38,157.33,8.93576982]
[1754181709369,134.96,157.45,157.33,8.93576982]
[1754181709579,3.52,157.37,157.33,8.93576982]
[1754181709874,3.52,157.37,157.32,8.93576982]
[1754181710074,3.52,157.41,157.32,8.93576982]
[1754181710472,134.96,157.45,157.35,15.29236982]
[1754181710672,134.96,157.45,157.35,8.93576982]
[1754181710869,3.52,157.37,157.35,8.93576982]
[1754181711068,3.52,157.39,157.35,8.93576982]
[1754181711273,3.52,157.44,157.35,8.93576982]
[1754181711475,134.96,157.45,157.36,6.3561]
[1754181711476,9.8738,157.42,157.36,6.3561]
[1754181711973,3.52,157.41,157.35,8.93576982]
[1754181712374,6.3542,157.41,157.36,6.3561]
[1754181712673,3.52,157.39,157.36,6.3561]
[1754181712879,3.52,157.41,157.35,8.93576982]
[1754181713472,3.52,157.47,157.35,8.93576982]
[1754181713678,13.55011532,157.56,157.18,154.2897]
[1754181713679,3.52,157.51,157.44,8.93576982]
[1754181713875,3.52,157.53,157.49,8.93576982]
[1754181714076,3.52,157.52,157.49,8.93576982]
[1754181714476,3.52,157.52,157.5,6.3502]
[1754181714877,3.52,157.54,157.49,8.93576982]
[1754181715078,3.52,157.54,157.53,8.93576982]
[1754181715272,3.52,157.61,157.53,8.93576982]
[1754181716785,6.3465,157.61,157.53,15.28476982]
[1754181716987,3.52,157.6,157.53,8.93576982]
[1754181717182,134.28,157.62,157.56,8.93576982]
[1754181717383,3.52,157.58,157.56,8.93576982]
[1754181718994,3.46,157.61,157.56,8.93576982]
[1754181719289,3.46,157.61,157.59,8.93576982]
[1754181719494,3.46,157.65,157.59,8.93576982]
[1754181719692,3.46,157.65,157.62,8.93576982]
[1754181720292,3.46,157.76,157.62,8.93576982]
[1754181720498,3.46,157.76,157.56,8.93576982]
[1754181720699,3.46,157.76,157.65,8.93576982]
[1754181720891,3.46,157.76,157.68,8.93576982]
[1754181721287,6.3412,157.74,157.68,8.93576982]
[1754181721487,426.92,157.77,157.68,8.93576982]
[1754181721690,3.46,157.76,157.68,8.93576982]
[1754181722501,3.46,157.74,157.68,8.93576982]
[1754181723099,3.46,157.74,157.71,8.93576982]
[1754181723497,3.46,157.75,157.71,8.93576982]
[1754181723800,3.46,157.75,157.72,6.3416]
[1754181723995,3.46,157.78,157.74,8.93576982]
[1754181724196,3.46,157.79,157.77,8.93576982]
[1754181724396,3.46,157.85,157.77,8.93576982]
[1754181726396,6.3378,157.82,157.77,8.93576982]
[1754181726602,3.46,157.81,157.75,8.93576982]
[1754181727596,559.96,157.86,157.78,8.93576982]
[1754181727797,3.46,157.85,157.78,8.93576982]
[1754181728396,3.46,157.85,157.76,8.93576982]
[1754181728599,3.46,157.83,157.76,8.93576982]
[1754181729503,3.46,157.83,157.79,8.93576982]
[1754181729903,136.7,157.86,157.79,8.93576982]
[1754181730202,136.7,157.86,157.81,6.338]
[1754181730404,3.46,158.0,157.83,8.93576982]
[1754181730604,426.34,158.11,157.95,8.93576982]
[1754181730804,3.46,158.01,157.95,8.93576982]
[1754181731309,3.46,158.06,157.95,8.93576982]
[1754181731908,3.46,158.01,157.95,8.93576982]
[1754181732307,6.3305,158.0,157.95,8.93576982]
[1754181732612,3.46,158.02,157.95,8.93576982]
[1754181732809,8.93576982,157.96,157.72,19.06]
[1754181733016,3.46,157.93,157.69,435.09576982]
[1754181733211,426.16,157.98,157.76,8.93576982]
[1754181733212,3.46,157.9,157.76,8.93576982]
[1754181733900,9.7969,157.84,157.76,8.93576982]
[1754181734300,3.46,157.84,157.76,8.93576982]
[1754181734504,3.46,157.84,157.77,6.3396]
[1754181734808,3.46,157.84,157.77,8.93576982]
[1754181735311,9.7972,157.84,157.77,8.93576982]
[1754181735604,143.95576982,157.92,157.8,8.93576982]
[1754181735805,3.46,157.86,157.8,8.93576982]
[1754181736312,3.46,157.88,157.83,8.93576982]
[1754181736509,3.46,157.88,157.69,435.09576982]
[1754181736510,6.3367,157.85,157.8,8.93576982]
[1754181736811,3.46,157.91,157.77,8.93576982]
[1754181737310,3.46,157.85,157.77,8.93576982]
[1754181737604,6.3385,157.8,157.74,8.93576982]
[1754181737810,8.93576982,157.86,157.74,8.93576982]
[1754181738011,3.46,157.85,157.71,8.93576982]
[1754181738213,3.46,157.83,157.71,8.93576982]
[1754181738709,12.39576982,157.83,157.71,8.93576982]
[1754181738918,3.46,157.82,157.71,8.93576982]
[1754181739417,3.46,157.82,157.74,8.93576982]
[1754181740116,3.46,157.82,157.71,8.93576982]
[1754181740814,3.46,157.78,157.71,15.27776982]
[1754181741311,3.46,157.78,157.71,8.93576982]
[1754181741615,3.46,157.81,157.74,8.93576982]
[1754181742010,3.46,157.81,157.77,6.3393]
[1754181742517,3.46,157.84,157.77,6.3393]
[1754181742813,3.46,157.84,157.77,8.93576982]
[1754181743406,3.46,157.94,157.8,8.93576982]
[1754181743714,3.46,157.91,157.8,8.93576982]
[1754181743922,8.93576982,157.92,157.8,8.93576982]
[1754181744106,3.46,157.91,157.8,8.93576982]
[1754181745914,3.46,157.91,157.71,426.0]
[1754181746113,3.46,157.88,157.74,8.93576982]
[1754181746315,3.46,157.85,157.74,8.93576982]
[1754181746610,6.3377,157.82,157.74,15.27646982]
[1754181746805,3.46,157.81,157.74,15.27646982]
[1754181747004,3.46,157.81,157.74,8.93576982]
[1754181747212,3.46,157.81,157.75,6.3401]
[1754181747412,133.52,157.85,157.77,8.93576982]
[1754181747717,3.46,157.84,157.77,8.93576982]
[1754181747933,133.52,157.85,157.79,6.3385]
[1754181748109,3.3,157.85,157.77,8.93576982]
[1754181748513,3.3,157.85,157.71,426.0]
[1754181748514,6.3349,157.89,157.81,6.338]
[1754181748717,3.3,157.85,157.8,8.93576982]
[1754181749111,3.3,157.87,157.81,6.338]
[1754181749612,3.3,157.9,157.83,8.93576982]
[1754181749816,3.3,157.9,157.71,426.0]
[1754181750117,3.3,157.9,157.82,8.93576982]
[1754181751014,3.3,157.94,157.88,8.93576982]
[1754181751419,3.3,157.94,157.91,8.93576982]
[1754181751819,3.3,157.97,157.91,8.93576982]
[1754181752222,3.3,158.0,157.94,8.93576982]
[1754181752526,3.3,157.99,157.95,6.3324]
[1754181752713,3.3,158.02,157.94,8.93576982]
[1754181754522,425.92,158.06,157.97,8.93576982]
[1754181754822,3.3,158.05,157.97,8.93576982]
[1754181756117,3.3,158.05,157.82,434.85576982]
[1754181756118,3.3,158.05,157.95,8.93576982]
[1754181756320,3.3,158.05,157.94,8.93576982]
[1754181757007,425.92,158.06,157.97,8.93576982]
[1754181757208,3.3,158.05,157.97,8.93576982]
[1754181757418,425.92,158.06,157.95,8.93576982]
[1754181757620,3.3,158.05,157.95,8.93576982]
[1754181758118,3.3,158.03,157.95,8.93576982]
[1754181758617,3.3,158.02,157.95,8.93576982]
[1754181758919,3.3,158.02,157.92,8.93576982]
[1754181759119,3.3,158.02,157.83,94.89347761]
[1754181759315,3.3,158.02,157.94,8.93576982]
[1754181759514,6.3308,158.0,157.94,8.93576982]
[1754181759715,3.3,157.99,157.94,8.93576982]
[1754181759909,3.3,157.98,157.94,8.93576982]
[1754181760115,3.3,158.05,157.94,8.93576982]
[1754181760315,3.3,158.03,157.94,8.93576982]
[1754181760519,3.3,158.03,157.97,8.93576982]
[1754181761219,132.56,158.07,158.0,8.93576982]
[1754181761423,3.3,158.06,157.83,113.95347761]
[1754181761725,3.3,158.05,157.96,8.93576982]
[1754181762122,3.3,158.03,157.96,8.93576982]
[1754181762319,7.69520342,158.02,157.83,94.89347761]
[1754181762621,3.3,158.0,157.87,8.93576982]
[1754181762822,3.3,157.9,157.83,103.82924743]
[1754181763221,6.3354,157.88,157.83,94.89347761]
[1754181763427,3.3,157.86,157.83,94.89347761]
[1754181764322,133.06,157.92,157.83,94.89347761]
[1754181764323,3.3,157.88,157.83,94.89347761]
[1754181764529,3.3,157.88,157.84,8.93576982]
[1754181764833,3.3,157.88,157.83,94.89347761]
[1754181765230,3.3,157.93,157.83,94.89347761]
[1754181765529,3.3,157.91,157.85,8.93576982]
[1754181766131,3.3,157.94,157.88,8.93576982]
[1754181766333,4.4067668,157.93,157.88,8.93576982]
[1754181766625,3.3,157.99,157.91,8.93576982]
[1754181766932,4.41006714,157.98,157.94,8.93576982]
[1754181767126,3.3,157.99,157.94,8.93576982]
[1754181767325,4.41141089,157.98,157.94,8.93576982]
[1754181767525,3.3,158.03,157.91,8.93576982]
[1754181767823,3.3,158.03,157.83,94.89347761]
[1754181767824,3.3,158.01,157.89,8.93576982]
[1754181768127,6.3317,157.97,157.9,6.3344]
[1754181768332,7.71058303,157.96,157.92,8.93576982]
[1754181768525,132.76,158.03,157.92,8.93576982]
[1754181768730,3.3,158.01,157.95,8.93576982]
[1754181768929,4.41212621,158.0,157.95,8.93576982]
[1754181769130,132.76,158.03,157.95,8.93576982]
[1754181769131,3.3,158.02,157.95,8.93576982]
[1754181769328,4.41293154,158.01,157.95,8.93576982]
[1754181769532,3.3,158.02,157.95,8.93576982]
[1754181769731,3.3,158.02,157.98,8.93576982]
[1754181769928,4.41316167,158.01,157.98,8.93576982]
[1754181770130,3.3,158.08,157.98,8.93576982]
[1754181770330,3.3,158.04,157.98,8.93576982]
[1754181770530,7.71316429,158.03,157.98,8.93576982]
[1754181770731,3.3,158.03,157.98,8.93576982]
[1754181771028,3.3,158.06,157.98,8.93576982]
[1754181771231,4.41266438,158.05,157.98,8.93576982]
[1754181771435,3.3,158.06,158.01,8.93576982]
[1754181771624,4.41132486,158.05,158.01,8.93576982]
[1754181771826,3.3,158.06,158.04,6.3288]
[1754181772022,432.58019155,158.13,158.01,8.93576982]
[1754181772230,3.3,158.11,158.01,8.93576982]
[1754181772424,4.41162005,158.1,158.01,8.93576982]
[1754181772628,7.71162005,158.09,158.01,8.93576982]
[1754181772834,4.41162005,158.08,158.01,8.93576982]
[1754181773036,7.71162005,158.07,158.03,6.3292]
[1754181773226,7.70881942,158.06,158.01,8.93576982]
[1754181773432,3.3,158.11,158.01,8.93576982]
[1754181773628,4.40718417,158.1,158.04,8.93576982]
[1754181773833,3.3,158.11,158.07,8.93576982]
[1754181774133,3.3,158.14,158.07,8.93576982]
[1754181774333,3.3,158.14,158.1,8.93576982]
[1754181774928,5.97308898,158.22,158.13,8.93576982]
[1754181775233,3.3,158.16,158.13,8.93576982]
[1754181775734,5.97308898,158.22,158.01,132.06]
[1754181775937,3.3,158.16,158.12,8.93576982]
[1754181778034,3.41,158.19,158.15,8.93576982]
[1754181778241,3.41,158.21,158.18,8.93576982]
[1754181778446,3.41,158.2,158.18,8.93576982]
[1754181778636,9.38308898,158.22,158.18,8.93576982]
[1754181779044,3.41,158.2,158.17,8.93576982]
[1754181779342,3.41,158.21,158.14,8.93576982]
[1754181779729,5.97308898,158.22,158.2,8.93576982]
[1754181779942,3.41,158.26,158.2,8.93576982]
[1754181780242,3.41,158.3,158.18,8.93576982]
[1754181780538,3.41,158.28,158.21,8.93576982]
[1754181780932,3.41,158.31,158.24,8.93576982]
[1754181781132,131.86,158.37,158.24,8.93576982]
[1754181781338,131.86,158.37,158.1,444.24]
[1754181781339,3.41,158.35,158.27,8.93576982]
[1754181781529,3.41,158.33,158.27,8.93576982]
[1754181781837,3.41,158.33,158.21,8.93576982]
[1754181782041,3.41,158.39,158.31,8.93576982]
[1754181783537,544.0959418,158.4,158.21,433.93576982]
[1754181783538,544.0959418,158.4,158.34,8.93576982]
[1754181783743,3.41,158.45,158.37,8.93576982]
[1754181783948,3.41,158.45,158.22,132.06]
[1754181783949,3.41,158.43,158.4,8.93576982]
[1754181784139,3.41,158.42,158.4,8.93576982]
[1754181784535,3.41,158.45,158.4,8.93576982]
[1754181784840,3.41,158.49,158.4,8.93576982]
[1754181785037,3.41,158.49,158.43,8.93576982]
[1754181785841,3.41,158.49,158.46,8.93576982]
[1754181786038,3.41,158.56,158.46,8.93576982]
[1754181786345,3.41,158.52,158.46,8.93576982]
[1754181787449,3.41,158.52,158.49,8.93576982]
[1754181787639,3.41,158.56,158.49,8.93576982]
[1754181788044,3.41,158.55,158.52,8.93576982]
[1754181788643,3.41,158.54,158.52,8.93576982]
[1754181789248,3.41,158.57,158.49,8.93576982]
[1754181790344,3.41,158.57,158.46,8.93576982]
[1754181790544,3.41,158.57,158.49,8.93576982]
[1754181791248,3.41,158.57,158.46,8.93576982]
[1754181791743,3.41,158.57,158.49,8.93576982]
[1754181791952,3.41,158.57,158.46,8.93576982]
[1754181792148,3.41,158.56,158.42,8.93576982]
[1754181792647,3.41,158.53,158.39,8.93576982]
[1754181792854,131.72,158.52,158.42,8.93576982]
[1754181793049,3.41,158.51,158.42,8.93576982]
[1754181793242,6.313,158.44,158.38,8.93576982]
[1754181793546,3.41,158.43,158.36,8.93576982]
[1754181793748,3.41,158.43,158.33,425.0]
[1754181793749,6.3141,158.42,158.33,431.3169]
[1754181793950,3.41,158.41,158.37,8.93576982]
[1754181794150,3.41,158.44,158.37,8.93576982]
[1754181794348,3.41,158.47,158.43,8.93576982]
[1754181794648,3.41,158.5,158.46,8.93576982]
[1754181794842,3.41,158.54,158.46,8.93576982]
[1754181795646,3.41,158.55,158.49,8.93576982]
[1754181796249,3.41,158.54,158.52,8.93576982]
[1754181796648,5.91021435,158.58,158.52,8.93576982]
[1754181796649,3.41,158.56,158.52,8.93576982]
[1754181796847,5.91021435,158.58,158.52,8.93576982]
[1754181797253,3.41,158.57,158.52,8.93576982]
[1754181797555,5.91021435,158.58,158.52,8.93576982]
[1754181797946,3.41,158.57,158.55,8.93576982]
[1754181799149,5.91021435,158.58,158.55,8.93576982]
[1754181799349,5.91021435,158.58,158.57,6.3078]
[1754181799550,3.41,158.63,158.59,8.93576982]
[1754181799750,3.41,158.63,158.62,8.93576982]
[1754181799954,3.41,158.65,158.62,8.93576982]
[1754181800251,3.41,158.68,158.62,8.93576982]
[1754181800450,6.3042,158.66,158.62,8.93576982]
[1754181800648,3.41,158.64,158.62,8.93576982]
[1754181800843,3.41,158.71,158.5,132.0]
[1754181801150,3.41,158.71,158.59,8.93576982]
[1754181801151,132.0,158.7,158.59,8.93576982]
[1754181801455,3.41,158.62,158.47,132.0]
[1754181801655,132.0,158.7,158.58,8.93576982]
[1754181801851,3.41,158.69,158.58,8.93576982]
[1754181802050,3.41,158.67,158.54,8.93576982]
[1754181802251,3.41,158.67,158.57,8.93576982]
[1754181802545,3.41,158.58,158.54,8.93576982]
[1754181802753,3.41,158.56,158.54,8.93576982]
[1754181803055,3.41,158.67,158.54,8.93576982]
[1754181803553,3.41,158.67,158.44,556.22]
[1754181803554,3.41,158.64,158.52,8.93576982]
[1754181803747,3.41,158.64,158.49,8.93576982]
[1754181803948,3.41,158.61,158.49,8.93576982]
[1754181804155,3.41,158.59,158.46,8.93576982]
[1754181804358,3.41,158.58,158.45,8.93576982]
[1754181804867,3.41,158.52,158.48,8.93576982]
[1754181805057,135.27,158.58,158.48,8.93576982]
[1754181805254,3.41,158.57,158.48,8.93576982]
[1754181806153,3.41,158.57,158.54,8.93576982]
[1754181806354,3.41,158.6,158.54,8.93576982]
[1754181806559,3.41,158.6,158.57,8.93576982]
[1754181806759,3.41,158.63,158.57,8.93576982]
[1754181806955,424.02,158.66,158.6,8.93576982]
[1754181806956,3.41,158.66,158.6,8.93576982]
[1754181807562,3.41,158.69,158.6,8.93576982]
[1754181807962,3.41,158.69,158.57,8.93576982]
[1754181808354,3.41,158.69,158.49,131.76]
[1754181808355,3.41,158.69,158.6,8.93576982]
[1754181808763,3.41,158.69,158.57,8.93576982]
[1754181808955,3.41,158.69,158.54,8.93576982]
[1754181809266,3.48,158.66,158.53,8.93576982]
[1754181810359,27.99576982,158.64,158.5,8.93576982]
[1754181810561,3.48,158.62,158.5,8.93576982]
[1754181810755,3.48,158.51,158.47,8.93576982]
[1754181810957,3.48,158.6,158.5,8.93576982]
[1754181811163,6.3081,158.57,158.5,15.24626982]
[1754181811460,3.48,158.57,158.5,8.93576982]
[1754181812460,3.48,158.57,158.47,8.93576982]
[1754181813362,3.48,158.6,158.47,8.93576982]
[1754181814164,3.48,158.6,158.5,8.93576982]
[1754181814368,3.48,158.6,158.45,424.02]
[1754181814369,3.48,158.6,158.53,8.93576982]
[1754181814667,3.48,158.63,158.57,8.93576982]
[1754181815162,3.48,158.66,158.6,8.93576982]
[1754181815463,131.32,158.68,158.6,8.93576982]
[1754181815666,3.48,158.67,158.63,8.93576982]
[1754181816265,3.48,158.66,158.63,8.93576982]
[1754181816766,3.48,158.66,158.6,8.93576982]
[1754181816968,3.48,158.66,158.63,8.93576982]
[1754181817468,3.48,158.71,158.63,8.93576982]
[1754181817665,3.48,158.71,158.66,8.93576982]
[1754181817865,3.48,158.73,158.69,8.93576982]
[1754181818467,3.48,158.72,158.69,8.93576982]
[1754181818665,131.26,158.79,158.69,8.93576982]
[1754181818861,3.48,158.75,158.69,8.93576982]
[1754181819365,3.48,158.75,158.66,8.93576982]
[1754181819962,3.48,158.75,158.69,8.93576982]
[1754181820172,3.48,158.75,158.68,8.93576982]
[1754181820367,131.24,158.79,158.68,8.93576982]
[1754181820571,3.48,158.78,158.68,8.93576982]
[1754181821075,3.48,158.72,158.68,8.93576982]
[1754181822477,3.48,158.78,158.68,8.93576982]
[1754181823170,9.7823,158.71,158.68,8.93576982]
[1754181823377,3.48,158.74,158.68,8.93576982]
[1754181823571,131.24,158.79,158.71,8.93576982]
[1754181823770,3.48,158.74,158.71,8.93576982]
[1754181823977,3.48,158.78,158.71,8.93576982]
[1754181824269,3.48,158.73,158.71,8.93576982]
[1754181825075,6.98019155,158.8,158.71,8.93576982]
[1754181825076,3.48,158.78,158.71,8.93576982]
[1754181825878,3.48,158.74,158.71,8.93576982]
[1754181826276,138.16019155,158.8,158.71,8.93576982]
[1754181826479,3.48,158.78,158.71,8.93576982]
[1754181826887,3.48,158.74,158.71,8.93576982]
[1754181827183,3.48,158.72,158.71,8.93576982]
[1754181827381,3.48,158.72,158.69,8.93576982]
[1754181827680,138.12019155,158.8,158.7,6.3023]
[1754181827887,3.48,158.74,158.72,8.93576982]
[1754181828983,3.48,158.73,158.72,8.93576982]
[1754181829478,3.48,158.79,158.72,8.93576982]
[1754181829876,3.48,158.79,158.75,8.93576982]
[1754181830071,3.48,158.81,158.75,8.93576982]
[1754181830475,3.48,158.81,158.73,8.93576982]
[1754181830680,3.48,158.83,158.79,8.93576982]
[1754181831274,138.12019155,158.85,158.79,8.93576982]
[1754181831480,6.98019155,158.85,158.82,8.93576982]
[1754181831685,6.98019155,158.86,158.82,8.93576982]